[Event "30th Abu Dhabi Festival A-Open 2024"]
[Site "Abu Dhabi"]
[Date "2024.08.21"]
[Round "6.3"]
[White "Rzayev, Chingiz"]
[Black "Shen, Fuyan"]
[Result "1/2-1/2"]
[ECO "A03"]
[WhiteElo "2134"]
[BlackElo "1826"]
[Annotator "RC"]
[PlyCount "96"]
[EventDate "2024.08.15"]
[EventType "swiss"]
[EventCountry "UAE"]
[SourceTitle "playchess.com"]
[Source "ChessBase"]
[SourceQuality "1"]
[TimeControl "5400+30"]

1. b3 {[%emt 0:00:07]} d5 {[%emt 0:02:05]} 2. Bb2 {[%emt 0:00:03]} Bf5 {[%emt 0:00:14]} 3. f4 {[%emt 0:00:30]} e6 {[%emt 0:03:53]} 4. Nf3 {[%emt 0:00:40]} h6 {[%emt 0:02:50]} 5. e3 {[%emt 0:01:08]} Nf6 {[%emt 0:00:11]} 6. Be2 {[%emt 0:00:17]} Bd6 {[%emt 0:01:18]} 7. O-O {[%emt 0:00:13]} O-O {[%emt 0:01:00]} 8. Ne5 {[%emt 0:06:04]} c5 {[%emt 0:01:25]} 9. d3 {[%emt 0:01:28]} Nfd7 {[%emt 0:07:26]} 10. Nxd7 {[%emt 0:05:34]} Qxd7 {[%emt 0:03:33]} 11. Nd2 {[%emt 0:00:14]} Nc6 {[%emt 0:00:20]} 12. Qe1 {[%emt 0:08:08]} Bh7 {[%emt 0:13:46]} 13. Qh4 {[%emt 0:22:28]} e5 {[%emt 0:04:17]} 14. fxe5 {[%emt 0:13:20]} Bxe5 {[%emt 0:04:23]} 15. Bxe5 {[%emt 0:00:36]} Nxe5 {[%emt 0:00:02]} 16. Rf2 {[%emt 0:01:05]} Rae8 {[%emt 0:07:22]} 17. Nf1 {[%emt 0:04:46]} Qe6 {[%emt 0:08:44]} 18. d4 {[%emt 0:07:46]} Nc6 {[%emt 0:03:33]} 19. c4 {[%emt 0:01:01]} cxd4 {[%emt 0:06:10]} 20. exd4 {[%emt 0:00:52]} Be4 {[%emt 0:02:38]} 21. cxd5 {[%emt 0:01:14]} Qxd5 {[%emt 0:00:32]} 22. Bc4 {[%emt 0:02:57]} Qxd4 {[%emt 0:00:29]} 23. Re1 {[%emt 0:00:09]} Bg6 {[%emt 0:00:05]} 24. Qxd4 {[%emt 0:00:34]} Nxd4 {[%emt 0:00:01]} 25. Rd1 {[%emt 0:00:57]} Ne6 {[%emt 0:08:36]} 26. Ng3 {[%emt 0:03:58]} a6 {[%emt 0:05:38]} 27. a4 {[%emt 0:01:13]} Nc5 {[%emt 0:01:22]} 28. h4 {[%emt 0:00:24]} Re3 {[%emt 0:02:06]} 29. Nf5 {[%emt 0:01:02]} Re5 {[%emt 0:01:31]} 30. Rd5 {[%emt 0:02:54]} Rxf5 {[%emt 0:02:48]} 31. Rfxf5 {[%emt 0:03:35]} Bxf5 {[%emt 0:00:00]} 32. Rxc5 {[%emt 0:00:37]} Be6 {[%emt 0:02:10]} 33. Rc7 {[%emt 0:02:00]} Rc8 {[%emt 0:00:23]} 34. Rxc8+ {[%emt 0:05:02]} Bxc8 {[%emt 0:00:01]} 35. b4 {[%emt 0:00:12]} Kf8 {[%emt 0:02:24]} 36. Kf2 {[%emt 0:00:29]} Ke7 {[%emt 0:03:33]} 37. Ke3 {[%emt 0:00:10]} g5 {[%emt 0:00:49]} 38. hxg5 {[%emt 0:00:06]} hxg5 {[%emt 0:00:01]} 39. Kd4 {[%emt 0:01:56]} Be6 {[%emt 0:00:19]} 40. Be2 {[%emt 0:00:06]} Bd7 {[%emt 0:01:53]} 41. Bf3 {[%emt 0:02:03]} Bc6 {[%emt 0:00:37]} 42. Bxc6 {[%emt 0:00:05]} bxc6 {[%emt 0:00:01]} 43. Kc5 {[%emt 0:00:00]} Kd7 {[%emt 0:00:46]} 44. Kb6 {[%emt 0:00:01]} f5 {[%emt 0:00:37]} 45. Kxa6 {[%emt 0:00:09]} f4 {[%emt 0:00:37]} 46. b5 {[%emt 0:00:04]} cxb5 {[%emt 0:00:25]} 47. axb5 {[%emt 0:00:05]} g4 {[%emt 0:00:11]} 48. b6 {[%emt 0:00:12]} f3 {[%emt 0:00:04]} 1/2-1/2

[Event "30th Abu Dhabi Festival A-Open 2024"]
[Site "Abu Dhabi"]
[Date "2024.08.21"]
[Round "6.4"]
[White "Barretto, Franz"]
[Black "Diaz Villagran, Robert"]
[Result "0-1"]
[ECO "E91"]
[WhiteElo "2101"]
[BlackElo "2268"]
[Annotator "RC"]
[PlyCount "94"]
[EventDate "2024.08.15"]
[EventType "swiss"]
[EventCountry "UAE"]
[SourceTitle "playchess.com"]
[Source "ChessBase"]
[SourceQuality "1"]
[TimeControl "5400+30"]

1. d4 {[%emt 0:00:04]} Nf6 {[%emt 0:00:09]} 2. c4 {[%emt 0:00:08]} g6 {[%emt 0:00:15]} 3. Nc3 {[%emt 0:00:10]} Bg7 {[%emt 0:00:19]} 4. e4 {[%emt 0:00:05]} d6 {[%emt 0:00:09]} 5. Nf3 {[%emt 0:00:05]} O-O {[%emt 0:00:17]} 6. Be2 {[%emt 0:00:03]} Nbd7 {[%emt 0:00:23]} 7. e5 {[%emt 0:25:32]} dxe5 {[%emt 0:00:50]} 8. dxe5 {[%emt 0:01:27]} Ng4 {[%emt 0:00:24]} 9. e6 {[%emt 0:00:05]} fxe6 {[%emt 0:00:17]} 10. O-O {[%emt 0:00:51]} Nde5 {[%emt 0:17:37]} 11. Qxd8 {[%emt 0:21:41]} Rxd8 {[%emt 0:00:45]} 12. Ng5 {[%emt 0:00:35]} Nf6 {[%emt 0:09:34]} 13. Nb5 {[%emt 0:14:09]} Ne8 {[%emt 0:04:20]} 14. Be3 {[%emt 0:00:29]} h6 {[%emt 0:07:59]} 15. Ne4 {[%emt 0:14:00]} b6 {[%emt 0:10:23]} 16. Rad1 {[%emt 0:05:08]} Bb7 {[%emt 0:09:41]} 17. Nec3 {[%emt 0:00:51]} a6 {[%emt 0:06:54]} 18. Nd4 {[%emt 0:00:14]} Kf7 {[%emt 0:00:05]} 19. f4 {[%emt 0:02:13]} Nc6 {[%emt 0:00:21]} 20. Nb3 {[%emt 0:04:02]} Nb4 {[%emt 0:12:59]} 21. c5 {[%emt 0:02:25]} Nd5 {[%emt 0:03:59]} 22. Nxd5 {[%emt 0:00:17]} Bxd5 {[%emt 0:00:05]} 23. cxb6 {[%emt 0:00:55]} cxb6 {[%emt 0:00:08]} 24. Bxb6 {[%emt 0:00:46]} Rdb8 {[%emt 0:00:38]} 25. Bd4 {[%emt 0:00:46]} a5 {[%emt 0:03:45]} 26. Bxg7 {[%emt 0:01:27]} Nxg7 {[%emt 0:00:23]} 27. Rd2 {[%emt 0:00:30]} Bxb3 {[%emt 0:00:16]} 28. axb3 {[%emt 0:00:02]} Rxb3 {[%emt 0:00:01]} 29. Ra1 {[%emt 0:01:21]} Rab8 {[%emt 0:02:47]} 30. Rxa5 {[%emt 0:00:41]} Rxb2 {[%emt 0:00:06]} 31. Rxb2 {[%emt 0:00:07]} Rxb2 {[%emt 0:00:03]} 32. Bc4 {[%emt 0:01:22]} Rb4 {[%emt 0:02:12]} 33. Rc5 {[%emt 0:00:07]} Nf5 {[%emt 0:00:13]} 34. g3 {[%emt 0:00:46]} Rb1+ {[%emt 0:02:02]} 35. Kf2 {[%emt 0:00:14]} Rb2+ {[%emt 0:00:06]} 36. Kg1 {[%emt 0:01:55]} Nd4 {[%emt 0:00:20]} 37. h4 {[%emt 0:00:28]} Rc2 {[%emt 0:00:37]} 38. Kf1 {[%emt 0:00:33]} h5 {[%emt 0:03:00]} 39. Rc8 {[%emt 0:00:38]} Nf5 {[%emt 0:00:56]} 40. Ke1 {[%emt 0:00:55]} Rg2 {[%emt 0:00:42]} 41. Rc6 {[%emt 0:01:35]} Nd4 {[%emt 0:00:06]} 42. Rb6 {[%emt 0:00:33]} Rxg3 {[%emt 0:00:02]} 43. Kf2 {[%emt 0:01:06]} Rf3+ {[%emt 0:00:21]} 44. Kg2 {[%emt 0:00:03]} Rxf4 {[%emt 0:00:16]} 45. Kg3 {[%emt 0:00:06]} Rg4+ {[%emt 0:00:09]} 46. Kh3 {[%emt 0:00:00]} Re4 {[%emt 0:00:08]} 47. Ra6 {[%emt 0:00:58]} Nf5 {[%emt 0:00:11]} 0-1

[Event "30th Abu Dhabi Festival A-Open 2024"]
[Site "Abu Dhabi"]
[Date "2024.08.21"]
[Round "6.5"]
[White "Dinesh Rajan M"]
[Black "Saydaliev, Akobirkhon"]
[Result "1-0"]
[ECO "C05"]
[WhiteElo "2092"]
[BlackElo "2266"]
[Annotator "RC"]
[PlyCount "89"]
[EventDate "2024.08.15"]
[EventType "swiss"]
[EventCountry "UAE"]
[SourceTitle "playchess.com"]
[Source "ChessBase"]
[SourceQuality "1"]
[TimeControl "5400+30"]

1. e4 {[%emt 0:00:21]} e6 {[%emt 0:00:55]} 2. d4 {[%emt 0:00:37]} d5 {[%emt 0:01:50]} 3. Nc3 {[%emt 0:00:08]} Nf6 {[%emt 0:00:07]} 4. e5 {[%emt 0:00:21]} Nfd7 {[%emt 0:00:29]} 5. f4 {[%emt 0:00:20]} c5 {[%emt 0:00:13]} 6. Nf3 {[%emt 0:00:07]} Nc6 {[%emt 0:00:08]} 7. Ne2 {[%emt 0:00:06]} cxd4 {[%emt 0:07:38]} 8. Nexd4 {[%emt 0:00:24]} Nc5 {[%emt 0:01:03]} 9. Be3 {[%emt 0:03:07]} Be7 {[%emt 0:01:43]} 10. Be2 {[%emt 0:02:48]} O-O {[%emt 0:01:49]} 11. O-O {[%emt 0:00:20]} Ne4 {[%emt 0:00:09]} 12. Kh1 {[%emt 0:06:36]} Bd7 {[%emt 0:01:08]} 13. Bd3 {[%emt 0:01:00]} Rc8 {[%emt 0:01:05]} 14. c3 {[%emt 0:07:37]} h6 {[%emt 0:09:21]} 15. Qe2 {[%emt 0:06:44]} a6 {[%emt 0:02:05]} 16. Nxc6 {[%emt 1:07:54]} Bxc6 {[%emt 0:00:30]} 17. f5 {[%emt 0:00:00]} exf5 {[%emt 0:05:55]} 18. Nd4 {[%emt 0:00:00]} Bg5 {[%emt 0:08:26]} 19. Nxf5 {[%emt 0:00:00]} Qc7 {[%emt 0:18:40]} 20. Bxe4 {[%emt 0:00:00]} dxe4 {[%emt 0:00:20]} 21. Qg4 {[%emt 0:00:00]} Bd7 {[%emt 0:14:23]} 22. Bxg5 {[%emt 0:00:00]} Bxf5 {[%emt 0:00:05]} 23. Rxf5 {[%emt 0:00:00]} hxg5 {[%emt 0:00:07]} 24. Rxg5 {[%emt 0:00:00]} f6 {[%emt 0:00:10]} 25. exf6 {[%emt 0:00:00]} Rxf6 {[%emt 0:00:01]} 26. Rxg7+ {[%emt 0:00:00]} Qxg7 {[%emt 0:00:03]} 27. Qxc8+ {[%emt 0:00:00]} Kh7 {[%emt 0:00:06]} 28. Qh3+ {[%emt 0:00:00]} Kg8 {[%emt 0:00:12]} 29. Rd1 {[%emt 0:00:00]} Qe7 {[%emt 0:01:38]} 30. Qe3 {[%emt 0:00:00]} Qe5 {[%emt 0:03:45]} 31. Kg1 {[%emt 0:00:00]} Qf5 {[%emt 0:01:32]} 32. h3 {[%emt 0:00:00]} Qe5 {[%emt 0:06:04]} 33. Qd4 {[%emt 0:00:00]} Qf4 {[%emt 0:01:14]} 34. Re1 {[%emt 0:00:00]} Re6 {[%emt 0:01:59]} 35. Qd5 {[%emt 0:00:00]} Qf7 {[%emt 0:00:30]} 36. Qg5+ {[%emt 0:00:00]} Kh7 {[%emt 0:00:55]} 37. Rf1 {[%emt 0:00:00]} Qg6 {[%emt 0:00:05]} 38. Qxg6+ {[%emt 0:00:00]} Kxg6 {[%emt 0:00:08]} 39. Kf2 {[%emt 0:00:00]} Rd6 {[%emt 0:00:20]} 40. Ke2 {[%emt 0:00:00]} Kg5 {[%emt 0:00:09]} 41. Rf7 {[%emt 0:00:00]} b5 {[%emt 0:00:42]} 42. Rg7+ {[%emt 0:00:00]} Kf5 {[%emt 0:01:10]} 43. h4 {[%emt 0:00:00]} a5 {[%emt 0:00:06]} 44. Rg5+ {[%emt 0:00:00]} Kf4 {[%emt 0:00:05]} 45. g3# {[%emt 0:00:00]} 1-0

[Event "30th Abu Dhabi Festival A-Open 2024"]
[Site "Abu Dhabi"]
[Date "2024.08.21"]
[Round "6.6"]
[White "Rayes, Abdul Kader"]
[Black "Aditya Varun Gampa"]
[Result "1/2-1/2"]
[ECO "E05"]
[WhiteElo "2064"]
[BlackElo "2261"]
[Annotator "RC"]
[PlyCount "45"]
[EventDate "2024.08.15"]
[EventType "swiss"]
[EventCountry "UAE"]
[SourceTitle "playchess.com"]
[Source "ChessBase"]
[SourceQuality "1"]
[TimeControl "5400+30"]

1. d4 {[%emt 0:03:07]} Nf6 {[%emt 0:01:33]} 2. Nf3 {[%emt 0:01:14]} d5 {[%emt 0:00:23]} 3. g3 {[%emt 0:01:55]} e6 {[%emt 0:00:43]} 4. Bg2 {[%emt 0:00:27]} Be7 {[%emt 0:01:38]} 5. O-O {[%emt 0:00:44]} O-O {[%emt 0:00:12]} 6. c4 {[%emt 0:02:26]} dxc4 {[%emt 0:00:47]} 7. Qc2 {[%emt 0:01:22]} a6 {[%emt 0:00:39]} 8. Qxc4 {[%emt 0:00:16]} b5 {[%emt 0:00:11]} 9. Qc2 {[%emt 0:00:03]} Bb7 {[%emt 0:00:16]} 10. Bd2 {[%emt 0:00:57]} Be4 {[%emt 0:03:01]} 11. Qc1 {[%emt 0:00:20]} Ra7 {[%emt 0:01:50]} 12. Nc3 {[%emt 0:07:56]} Bb7 {[%emt 0:00:16]} 13. Rd1 {[%emt 0:04:10]} Nbd7 {[%emt 0:00:47]} 14. Be3 {[%emt 0:05:50]} Nb6 {[%emt 0:01:57]} 15. Ne5 {[%emt 0:03:41]} Bxg2 {[%emt 0:00:39]} 16. Kxg2 {[%emt 0:00:03]} Qa8+ {[%emt 0:04:48]} 17. f3 {[%emt 0:05:29]} Rc8 {[%emt 0:01:44]} 18. Nd3 {[%emt 0:03:58]} b4 {[%emt 0:07:52]} 19. Nb1 {[%emt 0:01:25]} c6 {[%emt 0:00:33]} 20. Nd2 {[%emt 0:05:12]} a5 {[%emt 1:10:41]} 21. Nb3 {[%emt 0:50:25]} Rd7 {[%emt 0:00:30]} 22. Nbc5 {[%emt 0:00:30]} Rdd8 23. a3 {[%emt 0:00:30]} 1/2-1/2

[Event "30th Abu Dhabi Festival A-Open 2024"]
[Site "Abu Dhabi"]
[Date "2024.08.21"]
[Round "6.7"]
[White "Felix, Raphael"]
[Black "Kuandykuly, Danis"]
[Result "1/2-1/2"]
[ECO "B67"]
[WhiteElo "2054"]
[BlackElo "2224"]
[Annotator "RC"]
[PlyCount "73"]
[EventDate "2024.08.15"]
[EventType "swiss"]
[EventCountry "UAE"]
[SourceTitle "playchess.com"]
[Source "ChessBase"]
[SourceQuality "1"]
[TimeControl "5400+30"]

1. e4 {[%emt 0:04:02]} c5 {[%emt 0:00:15]} 2. Nf3 {[%emt 0:00:17]} d6 {[%emt 0:00:14]} 3. d4 {[%emt 0:00:28]} cxd4 {[%emt 0:00:05]} 4. Nxd4 {[%emt 0:00:07]} Nf6 {[%emt 0:00:03]} 5. Nc3 {[%emt 0:00:11]} Nc6 {[%emt 0:00:07]} 6. Bg5 {[%emt 0:00:28]} Bd7 {[%emt 0:00:31]} 7. Qd2 {[%emt 0:00:55]} a6 {[%emt 0:00:08]} 8. O-O-O {[%emt 0:01:16]} e6 {[%emt 0:00:05]} 9. h4 {[%emt 0:01:08]} Be7 {[%emt 0:00:51]} 10. f3 {[%emt 0:02:35]} Qc7 {[%emt 0:03:22]} 11. Kb1 {[%emt 0:01:24]} Nxd4 {[%emt 0:01:39]} 12. Qxd4 {[%emt 0:00:10]} b5 {[%emt 0:00:11]} 13. Bxf6 {[%emt 0:07:48]} Bxf6 {[%emt 0:01:03]} 14. Qxd6 {[%emt 0:00:52]} Qxd6 {[%emt 0:00:09]} 15. Rxd6 {[%emt 0:00:08]} Be5 {[%emt 0:00:07]} 16. Rd1 {[%emt 0:01:19]} Ke7 {[%emt 0:02:26]} 17. Ne2 {[%emt 0:02:46]} Rhd8 {[%emt 0:05:33]} 18. f4 {[%emt 0:01:43]} Bc7 {[%emt 0:03:25]} 19. g3 {[%emt 0:02:38]} b4 {[%emt 0:03:10]} 20. Bg2 {[%emt 0:01:14]} e5 {[%emt 0:01:17]} 21. Bf3 {[%emt 0:06:15]} Bb5 {[%emt 0:02:21]} 22. fxe5 {[%emt 0:01:09]} Bxe5 {[%emt 0:17:50]} 23. Nf4 {[%emt 0:05:50]} Ke8 {[%emt 0:12:09]} 24. Nd5 {[%emt 0:11:18]} a5 {[%emt 0:03:21]} 25. g4 {[%emt 0:00:41]} Rac8 {[%emt 0:02:43]} 26. g5 {[%emt 0:02:05]} Rc5 {[%emt 0:02:16]} 27. h5 {[%emt 0:02:47]} Rdc8 {[%emt 0:07:18]} 28. Rd2 {[%emt 0:06:22]} Ba4 {[%emt 0:11:37]} 29. b3 {[%emt 0:03:54]} Bb5 {[%emt 0:09:35]} 30. g6 {[%emt 0:01:52]} h6 {[%emt 0:01:29]} 31. Bg4 {[%emt 0:05:48]} Rd8 {[%emt 0:04:47]} 32. Rf2 {[%emt 0:02:43]} f6 {[%emt 0:00:54]} 33. Be6 {[%emt 0:01:30]} Bc6 {[%emt 0:02:09]} 34. Rf5 {[%emt 0:03:01]} Bxd5 {[%emt 0:02:59]} 35. exd5 {[%emt 0:00:20]} Ke7 {[%emt 0:00:59]} 36. Rf3 {[%emt 0:01:06]} Kd6 {[%emt 0:00:18]} 37. Re1 {[%emt 0:00:25]} 1/2-1/2

[Event "30th Abu Dhabi Festival A-Open 2024"]
[Site "Abu Dhabi"]
[Date "2024.08.21"]
[Round "6.8"]
[White "Fadi, Marko"]
[Black "UNWANA, Eugene Ekpoikong"]
[Result "1/2-1/2"]
[ECO "B01"]
[WhiteElo "2221"]
[BlackElo "2042"]
[Annotator "RC"]
[PlyCount "40"]
[EventDate "2024.08.15"]
[EventType "swiss"]
[EventCountry "UAE"]
[SourceTitle "playchess.com"]
[Source "ChessBase"]
[SourceQuality "1"]
[TimeControl "5400+30"]

1. e4 {[%emt 0:01:16]} d5 {[%emt 0:02:58]} 2. exd5 {[%emt 0:00:11]} Nf6 {[%emt 0:00:04]} 3. d4 {[%emt 0:00:58]} Nxd5 {[%emt 0:00:05]} 4. c4 {[%emt 0:04:26]} Nf6 {[%emt 0:00:06]} 5. Nf3 {[%emt 0:01:47]} Bg4 {[%emt 0:01:17]} 6. Be2 {[%emt 0:00:29]} e6 {[%emt 0:00:06]} 7. Qb3 {[%emt 0:09:42]} Qc8 {[%emt 0:00:08]} 8. h3 {[%emt 0:03:08]} Bh5 {[%emt 0:00:22]} 9. Bg5 {[%emt 0:01:28]} Nbd7 {[%emt 0:00:37]} 10. Nc3 {[%emt 0:01:01]} c6 {[%emt 0:00:14]} 11. O-O {[%emt 0:03:07]} h6 {[%emt 0:00:02]} 12. Be3 {[%emt 0:03:32]} Bd6 {[%emt 0:00:10]} 13. Rfe1 {[%emt 0:01:08]} O-O {[%emt 0:02:49]} 14. c5 {[%emt 0:04:48]} Bc7 {[%emt 0:00:44]} 15. Qc2 {[%emt 0:06:42]} Rd8 {[%emt 0:01:51]} 16. Rad1 {[%emt 0:02:36]} Qb8 {[%emt 0:01:32]} 17. Qc1 {[%emt 0:02:07]} Re8 {[%emt 0:03:22]} 18. b4 {[%emt 0:04:39]} Qd8 {[%emt 0:01:04]} 19. Bf4 {[%emt 0:03:23]} Qb8 {[%emt 0:00:14]} 20. Be3 {[%emt 0:02:35]} a6 {[%emt 0:00:36]} 1/2-1/2

[Event "30th Abu Dhabi Festival A-Open 2024"]
[Site "Abu Dhabi"]
[Date "2024.08.21"]
[Round "6.9"]
[White "Zhou, Yichen"]
[Black "Dere Pushkar"]
[Result "1-0"]
[ECO "D10"]
[WhiteElo "2023"]
[BlackElo "2217"]
[Annotator "RC"]
[PlyCount "85"]
[EventDate "2024.08.15"]
[EventType "swiss"]
[EventCountry "UAE"]
[SourceTitle "playchess.com"]
[Source "ChessBase"]
[SourceQuality "1"]
[TimeControl "5400+30"]

1. d4 {[%emt 0:00:01]} d5 {[%emt 0:02:00]} 2. c4 {[%emt 0:00:02]} c6 {[%emt 0:00:06]} 3. cxd5 {[%emt 0:00:08]} cxd5 {[%emt 0:00:05]} 4. Nc3 {[%emt 0:00:01]} Nf6 {[%emt 0:00:10]} 5. Bf4 {[%emt 0:00:04]} Nc6 {[%emt 0:00:26]} 6. e3 {[%emt 0:00:05]} a6 {[%emt 0:00:05]} 7. Bd3 {[%emt 0:00:36]} Bg4 {[%emt 0:00:13]} 8. f3 {[%emt 0:04:05]} Bd7 {[%emt 0:03:09]} 9. Nge2 {[%emt 0:00:24]} e6 {[%emt 0:00:51]} 10. O-O {[%emt 0:01:18]} Nh5 {[%emt 0:01:44]} 11. Be5 {[%emt 0:06:00]} Nxe5 {[%emt 0:07:04]} 12. dxe5 {[%emt 0:00:02]} Bc5 {[%emt 0:00:26]} 13. f4 {[%emt 0:09:52]} Bxe3+ {[%emt 0:02:29]} 14. Kh1 {[%emt 0:00:01]} g6 {[%emt 0:02:36]} 15. Rf3 {[%emt 0:10:08]} Ba7 {[%emt 0:05:07]} 16. Qe1 {[%emt 0:01:32]} Ng7 {[%emt 0:03:47]} 17. Rd1 {[%emt 0:00:24]} Nf5 {[%emt 0:03:34]} 18. Bxf5 {[%emt 0:00:15]} gxf5 {[%emt 0:00:36]} 19. Nd4 {[%emt 0:00:35]} Bxd4 {[%emt 0:06:18]} 20. Rxd4 {[%emt 0:00:02]} Rc8 {[%emt 0:01:30]} 21. Qd2 {[%emt 0:02:30]} Qc7 {[%emt 0:04:32]} 22. h3 {[%emt 0:01:42]} Rg8 {[%emt 0:00:30]} 23. Kh2 {[%emt 0:01:06]} Qc5 {[%emt 0:01:21]} 24. a4 {[%emt 0:05:11]} Rg6 {[%emt 0:00:51]} 25. Rfd3 {[%emt 0:04:43]} Qc6 {[%emt 0:04:13]} 26. Qe1 {[%emt 0:16:58]} Kf8 {[%emt 0:02:13]} 27. Qh4 {[%emt 0:00:19]} Kg8 {[%emt 0:05:09]} 28. Ne2 {[%emt 0:09:12]} Qc2 {[%emt 0:02:40]} 29. Rd2 {[%emt 0:00:35]} Qb1 {[%emt 0:02:20]} 30. Qf2 {[%emt 0:01:04]} Qa2 {[%emt 0:07:54]} 31. Rb4 {[%emt 0:01:45]} d4 {[%emt 0:02:17]} 32. Rbxd4 {[%emt 0:06:06]} Bc6 {[%emt 0:00:56]} 33. Ng3 {[%emt 0:03:32]} Qb3 {[%emt 0:04:58]} 34. Nh5 {[%emt 0:03:36]} Qb6 {[%emt 0:00:39]} 35. a5 {[%emt 0:03:24]} Qxa5 {[%emt 0:01:07]} 36. Qh4 {[%emt 0:00:33]} Bd5 {[%emt 0:01:57]} 37. Nf6+ {[%emt 0:01:24]} Kf8 {[%emt 0:00:02]} 38. Qxh7 {[%emt 0:00:57]} Rd8 {[%emt 0:00:07]} 39. b4 {[%emt 0:02:27]} Qb5 {[%emt 0:02:02]} 40. Qh8+ {[%emt 0:01:48]} Ke7 {[%emt 0:00:09]} 41. Qh4 {[%emt 0:00:12]} Kf8 {[%emt 0:00:34]} 42. Rc2 {[%emt 0:01:59]} Qb6 {[%emt 0:08:57]} 43. Nd7+ {[%emt 0:00:13]} 1-0

[Event "30th Abu Dhabi Festival A-Open 2024"]
[Site "Abu Dhabi"]
[Date "2024.08.21"]
[Round "6.10"]
[White "Bapat Aniket"]
[Black "Abdullayev, Elshad"]
[Result "1/2-1/2"]
[ECO "E20"]
[WhiteElo "1863"]
[BlackElo "2205"]
[Annotator "RC"]
[PlyCount "93"]
[EventDate "2024.08.15"]
[EventType "swiss"]
[EventCountry "UAE"]
[SourceTitle "playchess.com"]
[Source "ChessBase"]
[SourceQuality "1"]
[TimeControl "5400+30"]

1. d4 {[%emt 0:02:16]} d5 {[%emt 0:00:15]} 2. c4 {[%emt 0:00:05]} e6 {[%emt 0:00:29]} 3. Nf3 {[%emt 0:00:06]} Nf6 {[%emt 0:00:07]} 4. g3 {[%emt 0:00:05]} Bb4+ {[%emt 0:00:50]} 5. Nc3 {[%emt 0:00:33]} O-O {[%emt 1:31:19]} 6. Bg2 {[%emt 0:00:06]} dxc4 {[%emt 0:00:00]} 7. O-O {[%emt 0:00:07]} c5 {[%emt 0:00:00]} 8. dxc5 {[%emt 0:06:36]} Bxc5 {[%emt 0:00:00]} 9. Qa4 {[%emt 0:13:24]} Qc7 {[%emt 0:00:00]} 10. Nb5 {[%emt 0:01:33]} Qb6 {[%emt 0:00:00]} 11. Qxc4 {[%emt 0:01:22]} Bd7 {[%emt 0:00:00]} 12. Nc3 {[%emt 0:00:05]} Bc6 {[%emt 0:00:00]} 13. Na4 {[%emt 0:04:27]} Bxa4 {[%emt 0:00:00]} 14. Qxa4 {[%emt 0:00:05]} Nc6 {[%emt 0:00:00]} 15. Bd2 {[%emt 0:05:02]} a6 {[%emt 0:00:00]} 16. Rac1 {[%emt 0:07:38]} Be7 {[%emt 0:02:12]} 17. e3 {[%emt 0:09:00]} Qb5 {[%emt 0:02:37]} 18. Qxb5 {[%emt 0:01:17]} axb5 {[%emt 0:00:01]} 19. a3 {[%emt 0:00:05]} Ne4 {[%emt 0:00:56]} 20. Be1 {[%emt 0:00:10]} Bf6 {[%emt 0:00:50]} 21. Rc2 {[%emt 0:01:52]} Nd6 {[%emt 0:00:42]} 22. Nd2 {[%emt 0:01:47]} b4 {[%emt 0:00:34]} 23. Bxc6 {[%emt 0:00:40]} bxa3 {[%emt 0:01:08]} 24. bxa3 {[%emt 0:03:46]} bxc6 {[%emt 0:00:00]} 25. Rxc6 {[%emt 0:00:04]} Nb5 {[%emt 0:00:24]} 26. Nc4 {[%emt 0:00:20]} Rfc8 {[%emt 0:00:26]} 27. Rxc8+ {[%emt 0:01:25]} Rxc8 {[%emt 0:00:01]} 28. Nb6 {[%emt 0:03:41]} Rc6 {[%emt 0:00:19]} 29. Nd7 {[%emt 0:00:04]} Nxa3 {[%emt 0:00:27]} 30. Nxf6+ {[%emt 0:00:51]} gxf6 {[%emt 0:00:02]} 31. Bb4 {[%emt 0:01:24]} Nc4 {[%emt 0:00:43]} 32. Ra1 {[%emt 0:00:08]} Kg7 {[%emt 0:00:51]} 33. Ra8 {[%emt 0:00:48]} Ne5 {[%emt 0:00:25]} 34. Bf8+ {[%emt 0:01:36]} Kg6 {[%emt 0:00:12]} 35. Ra2 {[%emt 0:03:34]} Rc8 {[%emt 0:00:29]} 36. Bd6 {[%emt 0:01:13]} Nc4 {[%emt 0:00:34]} 37. Bb4 {[%emt 0:00:13]} Rb8 {[%emt 0:00:14]} 38. Bc3 {[%emt 0:00:12]} Rb3 {[%emt 0:00:12]} 39. Bd4 {[%emt 0:00:11]} e5 {[%emt 0:01:36]} 40. Bc5 {[%emt 0:00:13]} Rb5 {[%emt 0:00:41]} 41. Be7 {[%emt 0:00:07]} Rb7 {[%emt 0:00:30]} 42. Bf8 {[%emt 0:00:16]} Rb8 {[%emt 0:00:44]} 43. Bc5 {[%emt 0:00:13]} Rb5 {[%emt 0:00:03]} 44. Ba7 {[%emt 0:00:19]} Ra5 {[%emt 0:01:04]} 45. Rc2 {[%emt 0:00:54]} Na3 {[%emt 0:00:12]} 46. Bb6 {[%emt 0:00:24]} Nxc2 {[%emt 0:00:49]} 47. Bxa5 {[%emt 0:00:12]} 1/2-1/2